bitfinex-derivatives/quotes_BNBF0:USTF0_20250424
["timestamp","ask_amount","ask_price","bid_price","bid_amount"]
[1745522297920,0.29113421,598.81,597.21,0.30730975]
[1745522298818,0.29113421,598.81,597.22,0.30730975]
[1745522299015,0.29113421,598.81,597.14,0.30730975]
[1745522300317,0.29113421,598.81,597.13,1.06109089]
[1745522300522,0.29113421,598.81,597.14,0.30730412]
[1745522300819,0.29113421,598.81,597.15,1.06109089]
[1745522301020,0.29113421,598.81,597.16,0.30730412]
[1745522301824,0.29113421,598.81,597.15,1.06109089]
[1745522302015,0.29113421,598.81,597.16,0.30730899]
[1745522303222,0.29113421,598.81,597.11,0.30730899]
[1745522303423,0.29113421,598.81,597.1,1.06109089]
[1745522303624,1.27599039,598.99,597.11,0.30730812]
[1745522303925,0.29112569,598.8,597.11,0.30730812]
[1745522304220,1.27599039,598.99,597.11,0.30730812]
[1745522304924,0.29112569,598.98,597.11,0.30730812]
[1745522305322,0.29112569,598.98,597.05,0.30730812]
[1745522305524,0.29112569,598.98,597.06,0.30730812]
[1745522305724,0.29112569,598.98,597.05,0.30730812]
[1745522306021,0.29112569,598.98,597.04,0.29112569]
[1745522306022,0.29112569,598.98,597.06,0.30730812]
[1745522306322,0.29112569,598.98,597.07,0.30730812]
[1745522306521,0.29112569,598.98,597.05,0.30730812]
[1745522306726,0.29112569,598.98,597.06,0.30730812]
[1745522306927,0.29112569,598.98,597.05,0.30730812]
[1745522307126,0.29112569,598.98,597.06,0.30730812]
[1745522307329,0.29112569,598.98,597.07,0.30730812]
[1745522307522,0.29112569,598.98,597.08,0.30730812]
[1745522307727,0.29112569,598.98,597.05,0.30730812]
[1745522307924,0.29112569,598.98,597.06,0.30730812]
[1745522308124,0.29112569,598.98,597.05,0.30730812]
[1745522308325,0.29112569,598.98,597.06,0.30730812]
[1745522308630,0.29112569,598.98,597.07,0.30730812]
[1745522308929,0.29112569,598.98,597.08,0.30730812]
[1745522309129,0.29112569,598.98,597.05,0.30730812]
[1745522309330,0.29112569,598.98,597.06,0.30730812]
[1745522309531,1.27599039,599.14,597.05,0.30730812]
[1745522309731,1.27599039,599.14,597.06,0.30730812]
[1745522309931,0.29111473,598.97,597.07,0.30730812]
[1745522310126,1.27599039,599.14,597.05,0.30730812]
[1745522310332,1.27599039,599.12,597.06,1.36839901]
[1745522310532,1.27599039,599.12,597.07,0.30730812]
[1745522310834,0.29111473,599.11,597.07,0.30730812]
[1745522311230,0.29111473,599.11,597.08,0.30731441]
[1745522311428,0.29111473,599.11,597.07,0.30731441]
[1745522311632,0.29111473,599.11,597.08,0.30731441]
[1745522311828,0.29111473,599.11,597.07,0.30731441]
[1745522312033,0.29111473,599.11,597.08,0.30731441]
[1745522312234,0.29111473,599.11,597.09,0.30731441]
[1745522312534,0.29111473,599.11,597.1,0.30731441]
[1745522312734,0.29111473,599.11,597.11,0.30730566]
[1745522312937,0.29111473,599.11,597.07,0.30730566]
[1745522313237,1.27599039,599.04,597.08,0.30730566]
[1745522314232,1.27599039,599.04,597.07,1.06109089]
[1745522314536,1.27599039,599.04,597.08,0.30730521]
[1745522315837,1.27599039,598.74,597.27,1.06109089]
[1745522316038,1.27599039,598.74,597.28,0.30730521]
[1745522317240,1.27599039,598.74,597.27,1.06109089]
[1745522317539,1.27599039,598.74,597.28,0.30730623]
[1745522321842,0.29111351,598.73,597.28,0.30730623]
[1745522322337,0.29111351,598.73,597.29,0.30730623]
[1745522322541,0.29111351,598.73,597.24,0.30730623]
[1745522322741,0.29111351,598.73,597.25,0.30730623]
[1745522323041,0.29111351,598.73,597.26,0.30730623]
[1745522323238,0.29111351,598.73,597.25,0.30730623]
[1745522323452,0.29111351,598.73,597.27,0.30730623]
[1745522323637,0.29111351,598.73,597.28,0.30730623]
[1745522323841,0.29111351,598.73,597.29,0.30730623]
[1745522324141,0.29111351,598.73,597.3,0.30730623]
[1745522324441,0.29111351,598.73,597.31,0.30730623]
[1745522324640,1.27599039,598.9,597.25,0.30730623]
[1745522324842,1.27599039,598.9,597.26,0.30730623]
[1745522325039,1.27599039,599.03,597.29,1.06109089]
[1745522325239,1.27599039,599.03,597.3,0.30723863]
[1745522325838,0.29105629,599.02,597.3,0.30723863]
[1745522327541,1.27599039,599.03,597.3,0.30723863]
[1745522327841,1.27599039,599.21,597.3,0.30723863]
[1745522328042,1.27599039,599.21,597.24,1.227]
[1745522328240,1.27599039,599.21,597.25,0.30724885]
[1745522328842,0.29104047,599.2,597.25,0.30724885]
[1745522330541,1.27599039,599.21,597.25,0.30724885]
[1745522331139,1.27599039,599.21,597.24,1.227]
[1745522331344,1.27599039,599.21,597.25,0.30725125]
[1745522331947,0.29104047,599.2,597.25,0.30725125]
[1745522333647,1.27599039,599.21,597.25,0.30725125]
[1745522334348,1.27599039,599.17,597.26,0.30724526]
[1745522334547,1.27599039,599.17,597.25,0.30724526]
[1745522334748,1.27599039,599.17,597.26,0.30724526]
[1745522334948,1.27599039,599.17,597.25,0.30724526]
[1745522335149,1.27599039,599.17,597.26,0.30724526]
[1745522335444,1.27599039,599.17,597.27,0.30724526]
[1745522335645,1.27599039,599.17,597.25,0.30724526]
[1745522335851,1.27599039,599.17,597.26,0.30724526]
[1745522336046,1.27599039,599.17,597.25,0.30724526]
[1745522336246,1.27599039,599.17,597.26,0.30724526]
[1745522336450,1.27599039,599.17,597.25,0.30724526]
[1745522336650,1.27599039,599.17,597.26,0.30724526]
[1745522336851,0.29104534,599.16,597.25,0.30724526]
[1745522337049,0.29104534,599.16,597.24,1.227]
[1745522337250,0.29104534,599.16,597.26,0.30724623]
[1745522337448,0.29104534,599.16,597.27,0.30724623]
[1745522337646,0.29104534,599.16,597.25,0.30724623]
[1745522337850,0.29104534,599.16,597.26,0.30724623]
[1745522338051,0.29104534,599.16,597.27,0.30724623]
[1745522338251,0.29104534,599.16,597.25,0.30724623]
[1745522339348,1.27599039,599.13,597.25,0.30724623]
[1745522339948,0.29105021,599.12,597.25,0.30724623]
[1745522340453,0.29105021,599.12,597.24,1.227]
[1745522340650,0.29105021,599.12,597.25,0.3072467]
[1745522340952,0.29105021,599.12,597.26,1.043]
[1745522341152,0.29105021,599.12,597.27,0.3072467]
[1745522341447,0.29105021,599.12,597.26,1.043]
[1745522341653,0.29105021,599.12,597.27,0.30724699]
[1745522342551,1.27599039,599.17,597.27,0.30724699]
[1745522343754,0.2910429,599.16,597.27,0.30724699]
[1745522344554,1.27599039,599.09,597.27,0.30724699]
[1745522345453,1.27599039,599.09,597.27,1.56924699]
[1745522345656,1.27599039,599.09,597.28,0.30724699]
[1745522345953,0.29105264,599.08,597.28,0.30724699]
[1745522346154,0.29105264,599.08,597.27,2.705]
[1745522346348,0.29105264,599.08,597.28,0.3072465]
[1745522348555,1.27599039,599.09,597.28,0.3072465]
[1745522349356,1.27599039,599.09,597.27,2.705]
[1745522349654,1.27599039,599.09,597.28,0.30725306]
[1745522349855,0.29105142,599.08,597.28,0.30725306]
[1745522351155,0.29105142,599.08,597.28,1.66025306]
[1745522351356,0.29105142,599.08,597.29,0.30725306]
[1745522352257,1.27599039,599.03,597.29,0.30725306]
[1745522354160,1.27599039,599.03,597.28,1.353]
[1745522354360,1.27599039,599.03,597.29,0.30725924]
[1745522354861,1.27599039,599.15,597.29,0.30725924]
[1745522355159,0.29107212,599.02,597.29,0.30725924]
[1745522355355,1.27599039,599.15,597.29,0.30725924]
[1745522355660,1.27599039,599.15,597.28,1.353]
[1745522355862,1.27599039,599.15,597.29,0.30724866]
[1745522356159,0.29105751,599.14,597.29,0.30724866]
[1745522356960,1.27599039,599.08,597.29,0.30724866]
[1745522357365,1.27599039,599.08,597.3,0.30724345]
[1745522357562,1.27599039,599.08,597.29,0.30724345]
[1745522357759,1.27599039,599.08,597.3,0.30724345]
[1745522358060,0.29105142,599.07,597.31,0.30724345]
[1745522358258,0.29105142,599.07,597.29,0.30724345]
[1745522358559,0.29105142,599.07,597.3,0.30724345]
[1745522358758,0.29105142,599.07,597.28,1.353]
[1745522358759,0.29105142,599.07,597.31,0.30724345]
[1745522358965,0.29105142,599.07,597.32,0.30724345]
[1745522359164,0.29105142,599.07,597.29,0.30724345]
[1745522359362,0.29105142,599.07,597.3,0.30724345]
[1745522359663,0.29105142,599.07,597.31,0.30724345]
[1745522359867,0.29105142,599.07,597.29,0.30724345]
[1745522360066,0.29105142,599.07,597.3,0.30724345]
[1745522360266,0.29105142,599.07,597.29,0.30724345]
[1745522360567,1.27599039,599.08,597.29,0.30724345]
[1745522360766,2.17095587,599.76,597.29,0.30724345]
[1745522360767,1.27599039,599.06,597.29,0.30724345]
[1745522361168,1.27599039,599.06,597.28,1.353]
[1745522361763,1.27599039,599.06,597.29,0.30723791]
[1745522363564,1.27599039,599.06,597.29,1.49823791]
[1745522363768,1.27599039,599.06,597.29,1.191]
[1745522363971,1.27599039,599.09,597.3,0.30723825]
[1745522364865,0.29104899,599.08,597.3,0.30723825]
[1745522366567,1.27599039,599.0,597.33,1.06109089]
[1745522367667,1.27599039,599.0,597.34,0.30723692]
[1745522367872,0.2910429,598.99,597.34,0.30723692]
[1745522368772,0.2910429,598.99,597.33,1.06109089]
[1745522368969,0.2910429,598.99,597.34,0.30722742]
[1745522369478,0.2910429,598.99,597.3,0.30722742]
[1745522369674,1.27599039,599.1,597.3,0.30722742]
[1745522370873,0.2910356,599.09,597.3,0.30722742]
[1745522371975,0.2910356,599.09,597.29,1.191]
[1745522372273,0.2910356,599.09,597.3,0.30721782]
[1745522377881,0.2910356,599.09,597.3,1.47121782]
[1745522378178,0.2910356,599.09,597.31,0.30721782]
[1745522378583,1.27599039,599.39,597.31,0.30721782]
[1745522379676,1.27599039,599.39,597.31,1.65121782]
[1745522379882,0.29098206,599.38,597.32,0.30721782]
[1745522381679,1.27599039,599.42,597.32,0.30721782]
[1745522382886,0.2909553,599.41,597.32,0.30721782]
[1745522383186,0.2909553,599.41,597.31,1.344]
[1745522383380,0.2909553,599.41,597.32,0.30710928]
[1745522384583,1.27599039,599.42,597.33,1.0]
[1745522384783,1.27599039,599.46,597.34,0.30710928]
[1745522385087,0.2909553,599.4,597.34,0.30710928]
[1745522386588,0.2909553,599.4,597.35,0.3071106]
[1745522386888,0.2909553,599.4,597.36,0.3071106]
[1745522387182,0.2909553,599.4,597.37,0.3071106]
[1745522387386,0.2909553,599.4,597.34,0.3071106]
[1745522387584,0.2909553,599.4,597.35,0.3071106]
[1745522387790,0.2909553,599.4,597.34,0.3071106]
[1745522387990,0.2909553,599.4,597.33,1.0]
[1745522388190,0.2909553,599.4,597.34,0.30710168]
[1745522389589,0.2909553,599.4,597.33,1.0]
[1745522389796,0.2909553,599.4,597.34,0.30708051]
[1745522390592,1.27599039,599.75,597.34,0.30708051]
[1745522391894,0.29089572,599.74,597.34,0.30708051]
[1745522392295,0.29089572,599.74,597.35,1.419]
[1745522392495,0.29089572,599.74,597.36,0.30708051]
[1745522392692,0.29089572,599.74,597.35,1.419]
[1745522392892,0.29089572,599.74,597.36,0.30708597]
[1745522393392,1.27599039,599.7,597.36,0.30708597]
[1745522394901,0.29089936,599.69,597.36,0.30708597]
[1745522395894,0.29089936,599.69,597.35,1.419]
[1745522396198,0.29089936,599.69,597.36,0.30708566]
[1745522396607,1.27599039,599.7,597.36,0.30708566]
[1745522396802,0.29089936,599.68,597.36,0.30708566]
[1745522397104,1.27599039,599.72,597.36,0.30708566]
[1745522397603,1.27599039,599.72,597.35,1.70989936]
[1745522397902,0.29089693,599.71,597.36,0.30708537]
[1745522399604,1.27599039,599.7,597.36,0.30708537]
[1745522399899,0.29089936,599.69,597.36,0.30708537]
[1745522402009,1.27599039,599.7,597.36,0.30708537]
[1745522402203,0.29089936,599.68,597.36,0.30708537]
[1745522402403,1.27599039,599.65,597.36,0.30708537]
[1745522403305,1.27599039,599.65,597.35,1.419]
[1745522403513,1.27599039,599.65,597.36,0.30708584]
[1745522403906,0.29092003,599.64,597.36,0.30708584]
[1745522404312,0.29092003,599.64,597.37,1.336]
[1745522404505,0.29092003,599.64,597.38,0.30708584]
[1745522405610,1.27599039,599.86,597.38,0.30708584]
[1745522406813,0.29089207,599.85,597.38,0.30708584]
[1745522408219,1.27599039,599.8,597.38,0.30708584]
[1745522409818,0.29089936,599.79,597.38,0.30708584]
[1745522410821,1.56688975,599.79,597.38,0.30708584]
[1745522411119,1.56688975,599.79,597.37,1.62689936]
[1745522411415,1.56688975,599.79,597.38,0.30712971]
[1745522411620,1.27599039,599.79,597.38,0.30712971]
[1745522412819,0.29090058,599.78,597.38,0.30712971]
[1745522414224,1.27599039,599.72,597.38,0.30712971]
[1745522415824,1.27599039,599.72,597.37,1.62690058]
[1745522416025,1.27599039,599.72,597.38,0.30715196]
[1745522417325,1.27599039,599.32,597.38,0.30715196]
[1745522417819,0.29096017,599.31,597.38,0.30715196]
[1745522419825,1.27599039,599.25,597.38,0.30715196]
[1745522421826,0.29096868,599.24,597.38,0.30715196]
[1745522422130,1.27599039,599.22,597.37,2.68805957]
[1745522422427,1.27599039,599.22,597.38,0.30713328]
[1745522423625,1.27599039,599.22,597.37,2.68805957]
[1745522423822,1.27599039,599.22,597.38,0.30713781]
[1745522425028,0.29096868,599.24,597.38,0.30713781]
[1745522425029,0.29096868,599.24,597.44,1.06109089]
[1745522425228,0.29096868,599.24,597.45,0.30713781]
[1745522426625,1.27599039,599.3,597.45,0.30713781]
[1745522427731,1.27599039,599.25,597.47,1.06109089]
[1745522427930,1.27599039,599.25,597.48,0.30713781]
[1745522429829,0.29095409,599.29,597.48,0.30713781]
[1745522430027,0.29095409,599.29,597.49,0.30712475]
[1745522430229,0.29095409,599.29,597.46,0.30712475]
[1745522430425,0.29095409,599.29,597.47,0.30712475]
[1745522430628,0.29095409,599.29,597.48,0.30712475]
[1745522430827,0.29095409,599.29,597.46,0.30712475]
[1745522431032,0.29095409,599.29,597.47,0.30712475]
[1745522431234,0.29095409,599.29,597.46,0.30712475]
[1745522431428,0.29095409,599.29,597.47,0.30712475]
[1745522431629,0.29095409,599.29,597.46,0.30712475]
[1745522431831,0.29095409,599.29,597.47,0.30712475]
[1745522432030,0.29095409,599.29,597.46,1.36821564]
[1745522432234,0.29095409,599.29,597.47,0.30712475]
[1745522435240,0.29095409,599.29,597.48,0.30712475]
[1745522435536,0.29095409,599.29,597.49,0.30712475]
[1745522435837,0.29092247,599.28,597.5,0.30712475]
[1745522436138,0.29092247,599.28,597.51,0.30712475]
[1745522436336,0.29092247,599.28,597.43,0.30712475]
[1745522436537,0.29092247,599.28,597.44,0.30712475]
[1745522436737,0.29092247,599.28,597.43,0.30712475]
[1745522436937,0.29092247,599.28,597.44,0.30712475]
[1745522437237,0.29092247,599.28,597.43,0.30712475]
[1745522437533,0.29092247,599.28,597.44,0.30712475]
[1745522437741,0.29092247,599.28,597.44,1.06109089]
[1745522437937,0.29092247,599.28,597.45,0.30712475]
[1745522438639,1.27599039,599.5,597.45,0.30712475]
[1745522439338,1.27599039,599.5,597.44,1.06109089]
[1745522439539,1.27599039,599.5,597.45,0.30711395]
[1745522439839,0.29091517,599.49,597.46,1.263]
[1745522440037,1.27599039,599.41,597.5,1.06109089]
[1745522440235,1.27599039,599.41,597.51,0.30711395]
[1745522440441,1.27599039,599.41,597.5,1.06109089]
[1745522440638,1.27599039,599.41,597.51,0.30711202]
[1745522442644,1.27599039,599.41,597.52,0.30711231]
[1745522442844,1.27599039,599.4,597.51,0.30711231]
[1745522444146,1.27599039,599.4,597.5,1.06109089]
[1745522444346,1.27599039,599.4,597.51,0.30711261]
[1745522445450,1.27599039,599.14,597.57,1.06109089]
[1745522445849,0.29094314,599.13,597.57,1.06109089]
[1745522447655,1.27599039,599.14,597.57,1.06109089]
[1745522447847,0.29094314,599.12,597.57,1.06109089]
[1745522448255,0.29094314,599.12,597.46,1.55394314]
[1745522448454,0.29094314,599.12,597.47,0.30710753]
[1745522448955,0.29094314,599.12,597.46,1.55394314]
[1745522449146,0.29094314,599.12,597.47,0.30710753]
[1745522450655,1.27599039,599.61,597.47,0.30710753]
[1745522450954,0.29089936,599.11,597.47,0.30710753]
[1745522451155,1.27599039,599.61,597.47,0.30710753]
[1745522451957,0.29089936,599.6,597.47,0.30710753]
[1745522453665,1.27599039,599.61,597.47,0.30710753]
[1745522454560,1.27599039,599.65,597.47,0.30710753]
[1745522454964,0.29089693,599.6,597.47,0.30710753]
[1745522455367,0.29089693,599.6,597.46,0.29089693]
[1745522455566,0.29089693,599.6,597.47,0.30707643]
[1745522456562,1.27599039,599.65,597.47,0.30707643]
[1745522456767,1.27599039,599.65,597.42,0.30707643]
[1745522456969,0.29089207,599.59,597.46,0.29089207]
[1745522457162,0.29089207,599.59,597.47,0.30707643]
[1745522457766,1.27599039,599.53,597.53,1.06109089]
[1745522457967,1.27599039,599.53,597.54,0.30707643]
[1745522459965,0.29089693,599.52,597.54,0.30707643]
[1745522460267,0.29089693,599.52,597.53,1.06109089]
[1745522460463,0.29089693,599.52,597.54,0.30708205]
[1745522460969,1.27599039,599.49,597.54,0.30708205]
[1745522461170,1.27599039,599.49,597.55,0.30708205]
[1745522461371,1.27599039,599.49,597.48,1.367]
[1745522461568,1.27599039,599.49,597.49,0.30707767]
[1745522462473,1.27599039,599.49,597.5,1.373]
[1745522462768,1.27599039,599.49,597.51,0.30707767]
[1745522462972,0.29088356,599.48,597.52,0.30704369]
[1745522463174,0.29088356,599.48,597.53,0.30704369]
[1745522463373,0.29088356,599.48,597.51,0.30704369]
[1745522463572,0.29088356,599.48,597.52,0.30704369]
[1745522463775,1.27599039,599.28,597.59,1.06109089]
[1745522463968,1.27599039,599.28,597.6,0.30704369]
[1745522464774,1.27599039,599.28,597.61,1.363]
[1745522465075,1.27599039,599.28,597.62,0.30704369]
[1745522465971,1.27599039,599.28,597.61,1.363]
[1745522466174,1.27599039,599.28,597.62,0.30700125]
[1745522466869,0.29086776,599.27,597.63,1.222]
[1745522467075,0.29086776,599.27,597.64,0.30700125]
[1745522467677,0.29086776,599.27,597.65,0.30699839]
[1745522467872,0.29086776,599.27,597.66,0.30699839]
[1745522468071,0.29086776,599.27,597.64,0.30699839]
[1745522468275,0.29086776,599.27,597.65,0.30699839]
[1745522468473,0.29086776,599.27,597.66,0.30699839]
[1745522468778,1.27599039,599.79,597.67,0.30699839]
[1745522468975,1.27599039,599.79,597.68,0.30699839]
[1745522469173,1.27599039,599.79,597.63,1.222]
[1745522469174,1.27599039,599.79,597.64,0.30699839]
[1745522469370,1.27599039,599.88,597.65,0.30699839]
[1745522469573,1.27599039,599.88,597.64,0.30699839]
[1745522469773,1.27599039,599.88,597.65,0.30699839]
[1745522469973,0.29079241,599.87,597.64,0.30699839]
[1745522470177,0.29079241,599.87,597.65,0.30699839]
[1745522470477,0.29079241,599.87,597.66,0.30699839]
[1745522470677,0.29079241,599.87,597.63,1.222]
[1745522470878,0.29079241,599.87,597.64,0.30700071]
[1745522474590,1.27599039,599.9,597.64,0.30700071]
[1745522474881,1.27599039,599.96,597.64,0.30700071]
[1745522475081,0.29078998,599.89,597.64,0.30700071]
[1745522475380,1.27599039,599.96,597.63,1.222]
[1745522475577,1.27599039,599.96,597.64,0.30698578]
[1745522476083,0.29078269,599.95,597.64,0.30698578]
[1745522478883,1.27599039,599.66,597.64,0.30698578]
[1745522480085,1.27599039,599.66,597.63,1.222]
[1745522480279,1.27599039,599.66,597.64,0.3069877]
[1745522481085,1.27599039,599.66,597.65,1.191]
[1745522481285,1.27599039,599.66,597.66,0.3069877]
[1745522481889,0.29081671,599.65,597.66,0.3069877]
[1745522482585,0.29081671,599.65,597.67,0.3069877]
[1745522482781,0.29081671,599.65,597.68,0.3069877]
[1745522482981,0.29081671,599.65,597.69,0.3069877]
[1745522483181,0.29081671,599.65,597.7,0.3069877]
[1745522483387,0.29081671,599.65,597.66,0.3069877]
[1745522483586,0.29081671,599.65,597.67,0.3069877]
[1745522483788,0.29081671,599.65,597.66,0.3069877]
[1745522483988,0.29081671,599.65,597.67,0.3069877]
[1745522484186,0.29081671,599.65,597.66,0.3069877]
[1745522484384,0.29081671,599.65,597.67,0.3069877]
[1745522484585,0.29081671,599.65,597.68,0.3069877]
[1745522484886,0.29081671,599.65,597.69,0.3069877]
[1745522485082,0.29081671,599.65,597.66,0.3069877]
[1745522485285,1.27599039,599.51,597.67,0.3069877]
[1745522486889,0.29083372,599.5,597.67,0.3069877]
[1745522489489,0.29083372,599.5,597.66,1.06109089]
[1745522489690,1.27599039,599.52,597.67,0.30698554]
[1745522489991,0.29083251,599.49,597.67,0.30698554]
[1745522491787,0.29083251,599.49,597.67,1.75598554]
[1745522491989,0.29083251,599.49,597.68,0.30698554]
[1745522492691,1.27599039,599.62,597.68,0.30698554]
[1745522493886,0.29078755,599.61,597.68,0.30698554]
[1745522494296,0.29078755,599.61,597.67,1.73978755]
[1745522494492,0.29078755,599.61,597.68,0.30692158]
[1745522495794,0.29078755,599.61,597.67,1.73978755]
[1745522495989,0.29078755,599.61,597.68,0.30692816]
[1745522497397,0.29078755,599.61,597.67,1.73978755]
[1745522497596,0.29078755,599.61,597.68,0.30692771]
[1745522498597,1.27599039,600.04,597.68,0.30692771]
[1745522498898,0.29076325,599.6,597.68,0.30692771]
[1745522499198,1.27599039,600.04,597.69,0.30698241]
[1745522499497,1.27599039,600.04,597.68,0.30698241]
[1745522499698,1.27599039,600.04,597.69,0.30698241]
[1745522499892,2.17095587,600.83,597.69,0.30698241]
[1745522499893,1.27599039,600.01,597.7,0.30698241]
[1745522500598,1.27599039,600.01,597.71,1.217]
[1745522500798,1.27599039,600.01,597.72,0.30698241]
[1745522501097,0.2907669,600.0,597.72,0.30698241]
[1745522501693,1.27599039,600.01,597.72,0.30698241]
[1745522502599,1.27599039,599.76,597.72,0.30698241]
[1745522503597,1.27599039,599.76,597.73,1.298]
[1745522503898,1.27599039,599.76,597.74,0.30698241]
[1745522504899,0.29079484,599.75,597.74,0.30698241]
[1745522505900,1.27599039,599.68,597.74,0.30698241]
[1745522506100,1.27599039,599.68,597.75,1.326]
[1745522506293,1.27599039,599.68,597.76,0.30698241]
[1745522507898,1.27599039,599.68,597.75,1.326]
[1745522508100,1.27599039,599.68,597.76,0.30701064]
[1745522508599,1.27599039,599.66,597.76,0.30701064]
[1745522509499,0.29080456,599.65,597.76,0.30701064]
[1745522510101,0.29080456,599.65,597.75,1.326]
[1745522510299,0.29080456,599.65,597.76,0.30701036]
[1745522511600,1.27599039,599.38,597.75,1.326]
[1745522511800,1.27599039,599.38,597.76,0.30701512]
[1745522513897,0.29084588,599.37,597.76,0.30701512]
[1745522514501,1.56683627,599.37,597.76,0.30701512]
[1745522516506,1.56683627,599.37,597.77,0.30700891]
[1745522516706,1.27599039,599.37,597.76,0.30700891]
[1745522516901,0.29084709,599.36,597.77,0.30700891]
[1745522517206,0.29084709,599.36,597.78,0.30700891]
[1745522517406,0.29084709,599.36,597.79,0.30700891]
[1745522517615,1.27599039,599.33,597.76,0.30700891]
[1745522517812,1.27599039,599.33,597.77,0.3070051]
[1745522518010,1.27599039,599.33,597.76,0.3070051]
[1745522518209,1.27599039,599.33,597.77,0.3070051]
[1745522518415,1.27599039,599.33,597.78,0.3070051]
[1745522518611,1.27599039,599.33,597.79,0.3070051]
[1745522518812,1.27599039,599.33,597.76,0.3070051]
[1745522519611,2.17095587,599.82,597.75,1.326]
[1745522519612,1.27599039,599.35,597.75,2.38709089]
[1745522519817,1.27599039,599.35,597.76,0.30699376]
[1745522520017,0.29083494,599.34,597.75,2.38709089]
[1745522520213,0.29083494,599.34,597.76,0.30699357]
[1745522521017,0.29083494,599.34,597.75,2.38709089]
[1745522521217,0.29083494,599.34,597.76,0.30699386]
[1745522522519,0.29083494,599.34,597.78,1.06109089]
[1745522522815,1.27599039,599.38,597.79,0.30699386]
[1745522523018,0.29084466,599.33,597.79,0.30699386]
[1745522524018,0.29084466,599.33,597.78,1.06109089]
[1745522524221,0.29084466,599.33,597.79,0.30700075]
[1745522525619,1.27599039,599.38,597.79,0.30700075]
[1745522525921,1.27599039,599.37,597.79,0.30700075]
[1745522526113,1.27599039,599.37,597.79,0.992]
[1745522526319,1.27599039,599.37,597.8,0.30700075]
[1745522526914,0.29083737,599.36,597.8,0.30700075]
[1745522527118,0.29083737,599.36,597.79,0.992]
[1745522527319,0.29083737,599.36,597.8,0.30699973]
[1745522528718,1.27599039,599.37,597.79,1.884]
[1745522528919,1.27599039,599.37,597.8,0.30699882]
[1745522529919,0.29083737,599.36,597.8,0.30699882]
[1745522530218,0.29083737,599.36,597.79,1.884]
[1745522530418,0.29083737,599.36,597.8,0.30699436]
[1745522533122,0.29083737,599.36,597.85,1.06109089]
[1745522533321,0.29083737,599.36,597.86,0.30699436]
[1745522534721,1.27599039,599.37,597.86,0.30699436]
[1745522534921,0.29083008,599.35,597.85,1.06109089]
[1745522535121,0.29083008,599.35,597.86,0.30698085]
[1745522535523,0.29083008,599.35,597.87,1.239]
[1745522535724,0.29083008,599.35,597.88,0.30698085]
[1745522536326,1.56682047,599.35,597.9,1.06109089]
[1745522536526,1.56682047,599.35,597.91,0.30698114]
[1745522537626,1.27599039,599.35,597.91,0.30698114]
[1745522537926,0.29082643,599.34,597.91,0.30698114]
[1745522538728,1.27599039,599.33,597.91,1.36807203]
[1745522539027,1.27599039,599.33,597.92,0.30698114]
[1745522540922,0.29082765,599.32,597.92,0.30698114]
[1745522541129,0.29082765,599.32,597.93,0.30699564]
[1745522541325,0.29082765,599.32,597.92,0.30699564]
[1745522541525,1.27599039,599.3,597.93,0.30699564]
[1745522541826,1.27599039,599.3,597.94,0.30699564]
[1745522542031,1.27599039,599.3,597.89,0.30699564]
[1745522542331,1.27599039,599.3,597.9,0.30699564]
[1745522542525,1.27599039,599.3,597.91,0.30699564]
[1745522542732,1.27599039,599.3,597.92,0.30699564]
[1745522543028,1.27599039,599.3,597.93,0.30699564]
[1745522543333,1.27599039,599.3,597.94,0.30699564]
[1745522543532,1.27599039,599.3,597.89,0.30699564]
[1745522543733,1.27599039,599.3,597.89,1.36808653]
[1745522543927,1.27599039,599.3,597.9,0.30699564]
[1745522544934,0.290824,599.29,597.9,0.30699564]
[1745522545835,0.290824,599.29,597.9,1.25999564]
[1745522546033,0.290824,599.29,597.91,0.30699564]
[1745522546731,1.27599039,599.35,597.93,1.06109089]
[1745522546933,1.27599039,599.35,597.94,0.30699564]
[1745522547237,1.27599039,599.35,597.93,1.06109089]
[1745522547435,1.27599039,599.35,597.94,0.30697324]
[1745522547936,0.29081306,599.34,597.94,0.30697324]
[1745522548836,0.29081306,599.34,597.93,1.06109089]
[1745522548837,0.29081306,599.34,597.95,0.30698192]
[1745522549031,0.29081306,599.34,597.94,0.30698192]
[1745522549535,0.29081306,599.34,597.91,0.30698192]
[1745522549836,1.27599039,599.37,597.92,0.30698192]
[1745522550035,1.27599039,599.37,597.91,0.30698192]
[1745522550232,1.27599039,599.37,597.92,0.30698192]
[1745522550432,1.27599039,599.37,597.91,0.30698192]
[1745522550732,1.27599039,599.37,597.92,0.30698192]
[1745522551036,0.29081428,599.36,597.93,0.30698192]
[1745522551235,0.29081428,599.36,597.91,0.30698192]
[1745522551431,0.29081428,599.36,597.92,0.30698192]
[1745522551737,0.29081428,599.36,597.9,2.01409089]
[1745522551738,0.29081428,599.36,597.91,0.30698192]
[1745522551937,0.29081428,599.36,597.92,0.30698144]
[1745522552132,0.29081428,599.36,597.91,0.30698144]
[1745522552337,0.29081428,599.36,597.92,0.30698144]
[1745522552538,0.29081428,599.36,597.91,1.38398144]
[1745522552739,1.27599039,599.49,597.92,0.30698144]
[1745522553934,0.29079848,599.48,597.92,0.30698144]